bitfinex/quotes_SOLUSD_20250901
["timestamp","ask_amount","ask_price","bid_price","bid_amount"]
[1756742739401,0.2,198.32,198.31,61.77537816]
[1756742740413,0.2,198.32,198.31,54.21559401]
[1756742740703,0.2,198.32,198.31,59.25820406]
[1756742740877,0.2,198.32,198.31,54.21559401]
[1756742741201,0.2,198.32,198.31,54.92559401]
[1756742741786,0.2,198.32,198.31,54.21559401]
[1756742742702,0.2,198.32,198.31,59.96820406]
[1756742743000,0.2,198.32,198.31,59.25820406]
[1756742743181,0.2,198.32,198.31,54.21559401]
[1756742744889,0.2,198.32,198.31,59.96820406]
[1756742745196,0.2,198.32,198.31,66.81798821]
[1756742748306,0.2,198.32,198.31,67.32224921]
[1756742749116,0.2,198.32,198.31,19.34820406]
[1756742749315,0.2,198.32,198.31,66.81798821]
[1756742749532,0.2,198.32,198.31,26.19798821]
[1756742749730,0.2,198.32,198.31,66.79798821]
[1756742750730,0.2,198.32,198.31,67.30224921]
[1756742751619,0.2,198.32,198.31,69.46476578]
[1756742751824,0.03,198.33,198.32,13.59559401]
[1756742751994,0.03,198.33,198.32,21.15537816]
[1756742752191,0.03,198.33,198.32,47.15537816]
[1756742752838,0.03,198.33,198.32,40.30559401]
[1756742753001,0.03,198.33,198.32,47.15537816]
[1756742753196,0.03,198.33,198.32,92.79773394]
[1756742754411,0.03,198.34,198.33,0.14216157]
[1756742754633,0.2,198.42,198.36,39.59559401]
[1756742754801,0.2,198.42,198.41,20.44537816]
[1756742755003,0.2,198.42,198.41,61.04537816]
[1756742755207,0.2,198.42,198.41,59.94566255]
[1756742755511,0.2,198.42,198.41,59.23566255]
[1756742756006,0.2,198.42,198.41,54.19559401]
[1756742756598,0.2,198.42,198.41,13.59559401]
[1756742756922,0.86,198.42,198.41,54.19559401]
[1756742757106,0.2,198.42,198.41,54.19559401]
[1756742757308,0.1,198.45,198.44,39.73775558]
[1756742757642,0.1,198.45,198.44,47.09147038]
[1756742757824,0.1,198.45,198.44,47.80147038]
[1756742758222,0.1,198.45,198.44,88.38147038]
[1756742758402,0.1,198.45,198.44,40.95168623]
[1756742758604,1e-08,198.45,198.44,88.38147038]
[1756742759311,1e-08,198.45,198.44,93.42077697]
[1756742760307,1e-08,198.45,198.44,52.84077697]
[1756742760543,1e-08,198.45,198.44,93.42077697]
[1756742760843,1e-08,198.45,198.44,52.84077697]
[1756742761037,1e-08,198.45,198.44,45.99099282]
[1756742761233,1e-08,198.45,198.44,98.40057564]
[1756742761537,0.1,198.52,198.48,39.59559401]
[1756742761743,0.1,198.52,198.48,87.02537816]
[1756742762045,0.66,198.51,198.48,46.44537816]
[1756742762513,0.86,198.49,198.48,89.04420316]
[1756742762715,0.86,198.49,198.48,13.59559401]
[1756742762938,0.86,198.49,198.41,5.04004213]
[1756742763122,7.50978415,198.48,198.43,6.84978415]
[1756742763317,0.66,198.47,198.44,40.58]
[1756742763518,0.66,198.46,198.45,13.59559401]
[1756742763743,0.66,198.46,198.45,54.17559401]
[1756742763935,0.66,198.46,198.45,54.15559401]
[1756742764253,7.50978415,198.46,198.36,5.04133897]
[1756742764434,6.84978415,198.43,198.38,6.84978415]
[1756742764633,6.84978415,198.43,198.39,54.15559401]
[1756742764634,0.66,198.42,198.39,54.15559401]
[1756742764847,6.84978415,198.44,198.39,61.00537816]
[1756742765149,0.72,198.42,198.41,13.59559401]
[1756742765335,0.72,198.42,198.41,54.15559401]
[1756742766335,0.72,198.45,198.42,13.59559401]
[1756742766853,26.34216157,198.49,198.39,5.0404599]
[1756742766854,0.72,198.48,198.44,20.44537816]
[1756742767057,0.72,198.48,198.43,41.27]
[1756742767058,0.2,198.49,198.47,13.59559401]
[1756742767254,0.2,198.49,198.48,54.15559401]
[1756742767439,0.92,198.49,198.48,54.15559401]
[1756742768242,0.92,198.49,198.48,59.19388502]
[1756742768243,0.2,198.49,198.48,59.19388502]
[1756742768770,0.2,198.49,198.48,66.04366917]
[1756742769493,0.2,198.49,198.48,66.75366917]
[1756742770177,0.2,198.49,198.48,66.04366917]
[1756742770673,0.2,198.49,198.48,92.75366917]
[1756742771042,0.03,198.51,198.5,39.59559401]
[1756742771362,0.03,198.51,198.5,87.00537816]
[1756742771550,0.03,198.51,198.5,92.75316153]
[1756742771953,0.03,198.51,198.5,85.90337738]
[1756742772960,0.03,198.51,198.5,92.75316153]
[1756742773664,0.1,198.52,198.5,92.75316153]
[1756742773851,0.1,198.52,198.51,21.15537816]
[1756742774249,1e-08,198.52,198.51,21.65913111]
[1756742774561,1e-08,198.52,198.51,21.80129268]
[1756742774941,1e-08,198.52,198.51,21.29753973]
[1756742775342,1e-08,198.52,198.51,23.31575373]
[1756742775542,1e-08,198.52,198.51,28.35328332]
[1756742776844,1e-08,198.52,198.51,68.89328332]
[1756742777253,1e-08,198.52,198.51,61.1913376]
[1756742777463,1e-08,198.52,198.51,28.21112175]
[1756742777658,1e-08,198.52,198.51,68.75112175]
[1756742778746,1e-08,198.52,198.51,68.89328332]
[1756742778945,0.03,198.57,198.55,39.59559401]
[1756742779265,0.03,198.57,198.56,60.98537816]
[1756742779651,0.03,198.57,198.56,66.02163923]
[1756742781172,0.03,198.57,198.56,66.73163923]
[1756742781762,1e-08,198.57,198.56,66.8738008]
[1756742782277,1e-08,198.57,198.56,67.3774269]
[1756742782478,1e-08,198.57,198.56,66.8738008]
[1756742784168,1e-08,198.59,198.58,39.59559401]
[1756742784476,1e-08,198.59,198.58,86.96537816]
[1756742784661,1e-08,198.59,198.58,87.67537816]
[1756742784861,1e-08,198.59,198.58,39.59559401]
[1756742785176,1e-08,198.59,198.58,47.15537816]
[1756742785376,1e-08,198.59,198.58,87.67537816]
[1756742785687,1e-08,198.59,198.58,68.66732388]
[1756742785853,0.72,198.68,198.65,13.59559401]
[1756742786053,0.72,198.67,198.66,54.11559401]
[1756742786571,159.8,198.75,198.66,54.11559401]
[1756742786572,0.72,198.71,198.67,13.59559401]
[1756742786792,0.72,198.75,198.7,20.44537816]
[1756742786949,8.27924044,198.83,198.73,20.44537816]
[1756742786950,0.72,198.74,198.73,20.44537816]
[1756742787145,0.72,198.74,198.73,60.96537816]
[1756742787357,0.72,198.76,198.74,13.59559401]
[1756742787555,6.84978415,198.81,198.76,13.59559401]
[1756742787858,11.8799867,198.8,198.77,40.52]
[1756742788070,5.03020255,198.8,198.78,40.52]
[1756742788254,0.72,198.79,198.78,54.11559401]
[1756742788454,0.72,198.79,198.78,13.59559401]
[1756742788686,0.72,198.79,198.78,54.11559401]
[1756742789083,0.72,198.79,198.78,13.59559401]
[1756742789288,0.72,198.79,198.78,40.52]
[1756742789455,0.72,198.79,198.78,54.11559401]
[1756742789893,0.72,198.82,198.79,13.59559401]
[1756742790180,7.113896,198.86,198.8,40.5]
[1756742790181,0.72,198.81,198.8,40.5]
[1756742790399,0.72,198.81,198.8,54.09559401]
[1756742791058,5.02866335,198.87,198.81,13.59559401]
[1756742791254,6.84978415,198.86,198.83,13.59559401]
[1756742791462,6.84978415,198.87,198.84,40.5]
[1756742791684,0.72,198.86,198.84,40.5]
[1756742791881,0.72,198.85,198.84,54.09559401]
[1756742792588,0.72,198.89,198.85,13.59559401]
[1756742792768,0.72,198.88,198.86,40.5]
[1756742792962,0.72,198.87,198.86,54.09559401]
[1756742793162,0.72,198.87,198.86,60.94537816]
[1756742793375,5.02689388,198.93,198.86,60.94537816]
[1756742793376,0.72,198.9,198.86,60.94537816]
[1756742793580,0.72,198.9,198.87,20.44537816]
[1756742793767,0.72,198.92,198.89,13.59559401]
[1756742794076,0.72,198.92,198.91,13.59559401]
[1756742795165,0.68,198.95,198.91,40.48]
[1756742795365,0.68,198.94,198.91,40.48]
[1756742795573,7.52978415,198.93,198.88,6.84978415]
[1756742795902,0.68,198.92,198.9,13.59559401]
[1756742796070,0.68,198.91,198.9,13.59559401]
[1756742796775,6.84978415,198.92,198.9,13.59559401]
[1756742796975,5.70667643,198.94,198.9,13.59559401]
[1756742797187,0.68,198.94,198.92,13.59559401]
[1756742797368,0.68,198.94,198.93,54.07559401]
[1756742797880,0.68,198.97,198.93,54.07559401]
[1756742798085,7.52978415,198.96,198.93,54.07559401]
[1756742798392,0.68,198.96,198.93,54.07559401]
[1756742798778,6.84978415,198.94,198.91,40.48]
[1756742798978,0.68,198.93,198.91,40.48]
[1756742799385,7.52978415,198.93,198.91,40.48]
[1756742799967,0.68,198.92,198.91,54.07559401]
[1756742800294,7.52978415,198.92,198.91,54.07559401]
[1756742800498,0.68,198.92,198.87,13.59559401]
[1756742800693,0.68,198.92,198.82,15.11297]
[1756742800694,6.84978415,198.89,198.83,5.02927912]
[1756742800994,6.84978415,198.89,198.84,60.90537816]
[1756742801172,6.84978415,198.9,198.86,13.59559401]
[1756742801372,7.52978415,198.9,198.88,13.59559401]
[1756742801571,0.68,198.89,198.88,54.05559401]
[1756742801773,6.84978415,198.9,198.88,54.05559401]
[1756742801974,26.68,198.92,198.88,54.05559401]
[1756742802172,6.84978415,198.9,198.88,54.05559401]
[1756742802397,7.52978415,198.89,198.82,6.84978415]
[1756742802589,0.68,198.89,198.84,13.59559401]
[1756742802789,6.84978415,198.87,198.86,13.59559401]
[1756742802989,7.52978415,198.87,198.86,13.59559401]
[1756742803298,0.68,198.87,198.86,54.05559401]
[1756742803479,7.52978415,198.87,198.86,13.59559401]
[1756742803684,7.52978415,198.87,198.86,54.05559401]
[1756742803878,7.52978415,198.87,198.78,15.116015]
[1756742803879,12.55819466,198.87,198.79,13.59559401]
[1756742804095,6.84978415,198.85,198.81,13.59559401]
[1756742804295,6.84978415,198.83,198.77,6.84978415]
[1756742804481,6.84978415,198.81,198.78,13.59559401]
[1756742804682,7.52978415,198.81,198.79,40.46]
[1756742804999,0.68,198.81,198.79,13.59559401]
[1756742805185,7.52978415,198.81,198.79,54.05559401]
[1756742805385,0.14216157,198.86,198.79,54.05559401]
[1756742805591,0.68,198.85,198.79,54.05559401]
[1756742805900,6.84978415,198.81,198.79,54.05559401]
[1756742806075,6.84978415,198.82,198.79,54.05559401]
[1756742806276,5.02891626,198.85,198.79,54.05559401]
[1756742806581,6.84978415,198.82,198.79,54.05559401]
[1756742807490,6.84978415,198.82,198.75,5.0314269]
[1756742807491,0.68,198.81,198.75,13.59559401]
[1756742807681,6.84978415,198.78,198.71,15.121349]
[1756742807884,6.84978415,198.76,198.72,13.59559401]
[1756742808101,6.84978415,198.76,198.73,40.46]
[1756742808291,0.68,198.78,198.73,40.46]
[1756742808607,6.84978415,198.75,198.73,40.46]
[1756742808800,6.84978415,198.74,198.73,54.05559401]
[1756742808975,0.68,198.78,198.73,54.05559401]
[1756742809173,6.84978415,198.75,198.73,54.05559401]
[1756742809497,6.84978415,198.74,198.73,40.46]
[1756742809716,7.52978415,198.74,198.64,5.03418059]
[1756742809911,0.68,198.74,198.66,6.84978415]
[1756742810123,6.84978415,198.72,198.65,41.16]
[1756742810420,6.84978415,198.72,198.66,6.84978415]
[1756742810591,6.84978415,198.71,198.66,13.59559401]
[1756742810788,6.84978415,198.71,198.66,14.29559401]
[1756742811015,7.52978415,198.7,198.65,13.59559401]
[1756742811208,6.84978415,198.69,198.62,0.7]
[1756742811390,6.84978415,198.67,198.63,44.97559401]
[1756742811710,6.84978415,198.67,198.63,45.67559401]
[1756742811886,6.84978415,198.68,198.63,45.67559401]
[1756742812317,6.84978415,198.67,198.63,14.29559401]
[1756742812617,5.71293466,198.7,198.65,13.59559401]
[1756742812618,6.84978415,198.68,198.65,13.59559401]
[1756742813391,6.84978415,198.67,198.65,13.59559401]
[1756742813593,6.84978415,198.67,198.64,40.46]
[1756742813594,6.84978415,198.66,198.64,40.46]
[1756742814196,0.82216157,198.72,198.65,14.29559401]
[1756742814487,5.03093242,198.78,198.71,13.59559401]
[1756742814788,5.71093242,198.78,198.71,60.90537816]
[1756742815011,6.84978415,198.76,198.71,54.05559401]
[1756742815213,7.52978415,198.76,198.71,54.05559401]
[1756742815416,6.84978415,198.75,198.71,54.05559401]
[1756742815601,6.84978415,198.75,198.71,54.75559401]
[1756742815994,12.56141355,198.75,198.71,40.46]
[1756742816319,7.52978415,198.74,198.7,40.46]
[1756742816910,5.85320227,198.77,198.71,0.7]
[1756742817223,7.52978415,198.77,198.71,20.44537816]
[1756742817414,6.84978415,198.75,198.71,13.59559401]
[1756742817930,6.84978415,198.75,198.71,54.75559401]
[1756742818434,5.71100365,198.77,198.71,54.75559401]
[1756742818725,6.84978415,198.77,198.72,20.44537816]
[1756742818928,6.84978415,198.76,198.72,13.59559401]
[1756742819402,6.84978415,198.76,198.72,14.29559401]
[1756742820218,6.84978415,198.77,198.72,20.44537816]
[1756742820425,5.03041045,198.8,198.74,20.44537816]
[1756742820600,5.03041045,198.8,198.72,13.59559401]
[1756742820601,6.84978415,198.76,198.72,13.59559401]
[1756742820797,6.84978415,198.76,198.74,13.59559401]
[1756742821003,0.68,198.79,198.74,13.59559401]
[1756742821203,0.68,198.78,198.73,13.59559401]
[1756742821398,5.71041045,198.8,198.73,14.29559401]
[1756742821738,6.84978415,198.76,198.73,13.59559401]
[1756742822031,6.84978415,198.76,198.72,40.46]
[1756742822214,6.84978415,198.76,198.72,41.16]
[1756742822522,6.84978415,198.75,198.72,40.46]
[1756742822907,6.84978415,198.75,198.72,41.16]
[1756742823102,6.84978415,198.76,198.72,41.16]
[1756742823309,6.84978415,198.76,198.72,40.46]
[1756742823526,6.84978415,198.76,198.72,41.16]
[1756742823829,6.84978415,198.76,198.72,0.7]
[1756742824226,6.84978415,198.75,198.71,40.46]
[1756742824534,6.84978415,198.75,198.71,41.16]
[1756742824701,6.84978415,198.75,198.72,0.7]
[1756742824909,5.03098891,198.77,198.72,0.7]
[1756742825229,6.84978415,198.75,198.71,40.46]
[1756742825416,6.84978415,198.75,198.71,41.18]
[1756742826731,11.88126111,198.75,198.71,41.18]
[1756742827338,0.03,198.76,198.72,0.72]
[1756742827511,140.64978415,198.75,198.72,0.72]
[1756742827712,140.64978415,198.75,198.7,21.16537816]
[1756742828057,6.84978415,198.71,198.65,13.59559401]
[1756742828224,6.84978415,198.69,198.65,13.59559401]
[1756742828417,6.84978415,198.69,198.65,14.31559401]
[1756742828617,6.84978415,198.69,198.66,0.72]
[1756742828811,6.84978415,198.67,198.65,13.59559401]
[1756742829019,6.84978415,198.67,198.63,13.59559401]
[1756742829344,26.72,198.69,198.63,13.59559401]
[1756742829510,6.84978415,198.65,198.63,14.31559401]
[1756742829710,5.03448623,198.63,198.59,0.12]
[1756742829911,6.84978415,198.6,198.59,0.12]
[1756742830231,6.99194572,198.6,198.59,0.12]
[1756742830623,7.71194572,198.6,198.59,0.12]
[1756742831318,26.72,198.64,198.59,0.12]
[1756742831508,6.84978415,198.63,198.59,0.84]
[1756742831710,6.84978415,198.63,198.6,0.72]
[1756742831908,6.84978415,198.64,198.61,0.72]
[1756742832112,6.84978415,198.62,198.59,0.12]
[1756742832544,6.84978415,198.61,198.59,0.12]
[1756742832842,6.84978415,198.6,198.59,0.12]
[1756742834027,0.14216157,198.64,198.59,0.12]
[1756742834229,6.84978415,198.62,198.59,0.12]
[1756742834436,6.84978415,198.62,198.59,0.84]
[1756742835158,6.84978415,198.62,198.59,0.12]
[1756742835323,6.84978415,198.61,198.59,0.12]
[1756742836048,6.84978415,198.6,198.59,0.12]
[1756742836645,7.56978415,198.6,198.59,0.12]
[1756742836846,6.84978415,198.6,198.59,0.12]
[1756742837421,5.03503315,198.61,198.59,0.12]
[1756742837629,6.84978415,198.6,198.59,0.12]
[1756742837828,7.71194572,198.6,198.59,0.12]
[1756742838046,12.74719244,198.6,198.59,0.12]
[1756742838438,6.99194572,198.6,198.59,0.12]
[1756742838739,6.84978415,198.6,198.59,0.12]
[1756742839958,26.0,198.63,198.59,0.84]
[1756742840132,6.84978415,198.62,198.59,0.84]
[1756742840537,140.64978415,198.64,198.6,14.31559401]
[1756742840838,140.64978415,198.64,198.61,0.72]
[1756742841228,133.8,198.64,198.61,0.72]
[1756742841427,140.64978415,198.65,198.62,13.59559401]
[1756742841632,133.8,198.65,198.62,14.31559401]
[1756742841963,6.84978415,198.64,198.6,13.59559401]
[1756742842133,6.84978415,198.64,198.6,19.35083473]
[1756742842560,133.8,198.65,198.6,14.31559401]
[1756742842763,6.84978415,198.64,198.6,14.31559401]
[1756742843066,6.84978415,198.64,198.6,18.63079239]
[1756742843262,6.84978415,198.64,198.6,19.35079239]
[1756742843458,140.64978415,198.65,198.62,13.59559401]
[1756742843662,133.8,198.65,198.63,0.72]
[1756742843848,140.64978415,198.66,198.63,0.72]
[1756742844245,140.64978415,198.66,198.62,13.59559401]
[1756742844458,6.84978415,198.65,198.61,13.59559401]
[1756742844642,6.84978415,198.65,198.61,14.31559401]
[1756742844838,6.84978415,198.63,198.59,0.12]
[1756742845054,6.84978415,198.63,198.61,13.59559401]
[1756742845365,133.8,198.66,198.63,13.59559401]
[1756742845539,6.84978415,198.67,198.64,0.72]
[1756742845745,6.84978415,198.65,198.61,0.72]
[1756742845936,6.84978415,198.65,198.62,0.72]
[1756742846141,6.84978415,198.66,198.63,13.59559401]
[1756742846359,6.84978415,198.66,198.64,0.72]
[1756742846561,6.84978415,198.66,198.63,13.59559401]
[1756742846762,6.84978415,198.65,198.6,6.84978415]
[1756742846936,6.87978415,198.65,198.6,11.88500936]
[1756742847133,6.87978415,198.65,198.62,13.59559401]
[1756742847333,6.87978415,198.65,198.6,11.88500936]
[1756742847546,6.87978415,198.65,198.62,13.59559401]
[1756742848140,6.87978415,198.65,198.62,19.35032722]
[1756742848341,6.87978415,198.65,198.62,14.31559401]
[1756742848958,6.87978415,198.65,198.61,13.59559401]
[1756742849343,6.87978415,198.65,198.61,14.31559401]
[1756742849544,6.87978415,198.65,198.63,13.59559401]
[1756742849750,0.03,198.65,198.64,14.31559401]
[1756742849949,0.03,198.65,198.64,13.59559401]
[1756742851082,0.03,198.65,198.64,18.62982679]
[1756742851441,0.03,198.65,198.64,19.34982679]
[1756742851872,0.03,198.65,198.64,14.31559401]
[1756742852259,0.03,198.65,198.64,19.34982679]
[1756742853976,0.03,198.65,198.64,14.31559401]
[1756742854179,0.03,198.65,198.64,13.59559401]
[1756742855083,0.03,198.65,198.6,12.58811681]
[1756742855084,7.58978415,198.65,198.59,13.71559401]
[1756742855252,6.84978415,198.61,198.59,13.71559401]
[1756742855779,6.84978415,198.6,198.59,0.12]
[1756742857164,133.8,198.64,198.59,0.12]
[1756742857473,6.84978415,198.63,198.6,13.59559401]
[1756742857677,6.84978415,198.63,198.6,14.31559401]
[1756742857886,6.84978415,198.63,198.6,13.59559401]
[1756742858057,6.84978415,198.62,198.59,0.12]
[1756742858885,6.84978415,198.62,198.59,5.15547]
[1756742859077,140.64978415,198.64,198.6,14.31559401]
[1756742859382,140.64978415,198.64,198.62,13.59559401]
[1756742859786,6.84978415,198.63,198.6,19.35076643]
[1756742859957,133.8,198.64,198.6,19.35076643]
[1756742859958,140.64978415,198.64,198.6,18.63076643]
[1756742860282,0.03,198.65,198.63,6.84978415]
[1756742860975,0.03,198.65,198.64,0.72]
[1756742861188,0.03,198.65,198.64,20.44537816]
[1756742861485,0.03,198.65,198.64,21.16537816]
[1756742861787,0.03,198.65,198.64,26.19961094]
[1756742862169,0.03,198.67,198.66,39.59559401]
[1756742862352,3.36405144,198.76,198.67,13.59559401]
[1756742862555,3.36405144,198.76,198.73,13.59559401]
[1756742862764,7.58978415,198.76,198.73,13.59559401]
[1756742862966,0.03,198.76,198.72,20.44537816]
[1756742863381,0.03,198.76,198.73,0.72]
[1756742864081,0.74,198.76,198.72,13.59559401]
[1756742864383,0.03,198.76,198.73,0.72]
[1756742864580,0.03,198.76,198.75,13.59559401]
[1756742864791,0.03,198.76,198.75,20.44537816]
[1756742864962,0.03,198.76,198.75,21.16537816]
[1756742865574,0.03,198.76,198.75,61.58537816]
[1756742865987,0.03,198.76,198.75,66.6168247]
[1756742866286,0.03,198.76,198.75,26.1968247]
[1756742866470,0.03,198.76,198.75,66.6168247]
[1756742866670,0.03,198.76,198.75,14.31559401]
[1756742866983,0.03,198.76,198.75,53.99559401]
[1756742867156,0.03,198.76,198.75,61.56537816]
[1756742867998,0.03,198.76,198.75,66.5968247]
[1756742868173,0.03,198.76,198.75,66.73898627]
[1756742868361,1e-08,198.76,198.75,66.73898627]
[1756742869276,1e-08,198.76,198.75,26.33898627]
[1756742869460,0.03,198.8,198.78,13.59559401]
[1756742869767,0.1,198.85,198.8,13.59559401]
[1756742869972,0.1,198.85,198.84,25.47454734]
[1756742870173,0.1,198.85,198.84,65.87454734]
[1756742870592,0.1,198.85,198.84,13.59559401]
[1756742870774,0.1,198.85,198.84,53.99559401]
[1756742871173,7.65978415,198.85,198.84,13.59559401]
[1756742871385,6.94978415,198.85,198.84,13.59559401]
[1756742871688,0.1,198.85,198.84,13.59559401]
[1756742872265,0.1,198.85,198.81,0.72]
[1756742872592,0.1,198.85,198.83,6.84978415]
[1756742872800,0.1,198.85,198.84,7.56978415]
[1756742872978,0.1,198.85,198.84,6.84978415]
[1756742873288,0.1,198.85,198.84,7.56978415]
[1756742874290,0.1,198.85,198.84,12.59895333]
[1756742875472,0.1,198.85,198.84,12.7411149]
[1756742876878,0.1,198.85,198.84,5.74916918]
[1756742877194,0.1,198.85,198.83,46.44537816]
[1756742877372,0.1,198.85,198.84,53.97559401]
[1756742877579,0.1,198.85,198.84,60.82537816]
[1756742877793,0.1,198.85,198.84,61.54537816]
[1756742878374,0.1,198.85,198.84,66.57454734]
[1756742878677,0.1,198.85,198.84,13.59559401]
[1756742878882,0.1,198.85,198.84,60.80537816]
[1756742879088,0.1,198.85,198.84,66.55454734]
[1756742879580,0.1,198.85,198.84,65.83454734]
[1756742879895,0.1,198.85,198.84,66.55454734]
[1756742880474,0.1,198.85,198.84,66.69670891]
[1756742880804,0.1,198.85,198.84,66.55454734]
[1756742881168,0.03,198.92,198.91,20.44537816]
[1756742881509,0.03,198.92,198.91,53.95559401]
[1756742881887,0.03,198.92,198.91,13.59559401]
[1756742882072,0.74,198.92,198.91,53.95559401]
[1756742882280,0.03,198.92,198.91,53.95559401]
[1756742882908,7.58978415,198.92,198.91,53.95559401]
[1756742883076,0.74,198.92,198.91,53.95559401]
[1756742883394,7.58978415,198.92,198.84,32.84978415]
[1756742883570,6.84978415,198.89,198.85,53.95559401]
[1756742883775,7.55978415,198.91,198.85,61.52537816]
[1756742883994,6.87978415,198.92,198.87,6.84978415]
[1756742884170,0.71,198.91,198.89,13.59559401]
[1756742884387,0.71,198.91,198.9,53.95559401]
[1756742885087,0.03,198.92,198.91,13.59559401]
[1756742885624,12.61694673,198.92,198.85,13.59559401]
[1756742885782,12.61694673,198.92,198.86,40.36]
[1756742885783,6.84978415,198.9,198.86,40.36]
[1756742886100,5.05716258,198.92,198.89,6.84978415]
[1756742886101,0.03,198.92,198.89,6.84978415]
[1756742886282,0.03,198.92,198.91,20.44537816]
[1756742886605,0.03,198.92,198.91,65.81277748]
[1756742886803,0.03,198.92,198.91,66.48277748]
[1756742887493,0.03,198.92,198.91,65.81277748]
[1756742888378,0.03,198.92,198.91,60.78537816]
[1756742888596,0.03,198.92,198.91,65.81277748]
[1756742888783,0.03,198.92,198.91,66.48277748]
[1756742888986,0.03,198.92,198.91,60.78537816]
[1756742889382,0.03,198.92,198.91,53.93559401]
[1756742889699,0.03,198.92,198.91,60.78537816]
[1756742890006,0.03,198.92,198.91,65.81277748]
[1756742890218,0.03,198.92,198.91,66.48277748]
[1756742890707,0.03,198.92,198.91,13.59559401]
[1756742890880,0.03,198.92,198.91,53.93559401]
[1756742891079,0.03,198.92,198.91,65.81277748]
[1756742891289,0.03,198.92,198.91,66.48277748]
[1756742892284,0.03,198.92,198.91,66.62493905]
[1756742893318,0.03,198.92,198.91,18.62299333]
[1756742893493,0.03,198.92,198.91,67.82692648]
[1756742893878,0.74,198.92,198.91,15.60974301]
[1756742894082,0.74,198.92,198.91,53.93559401]
[1756742894520,7.58978415,198.92,198.91,53.93559401]
[1756742894726,12.61693074,198.92,198.87,6.849784]
[1756742894998,6.84978415,198.9,198.89,13.59559401]
[1756742895201,7.55978415,198.9,198.89,13.59559401]
[1756742895401,7.55978415,198.9,198.85,13.59559401]
[1756742895580,0.71,198.89,198.86,40.32]
[1756742895781,6.84978415,198.87,198.83,7.559784]
[1756742895987,6.84978415,198.84,198.83,26.08]
[1756742896183,7.55978415,198.84,198.83,26.08]
[1756742896391,7.55978415,198.84,198.81,40.32]
[1756742896702,0.71,198.87,198.83,13.59559401]
[1756742897003,33.55978415,198.9,198.85,13.59559401]
[1756742897306,6.84978415,198.87,198.81,11.87963508]
[1756742897488,7.55978415,198.86,198.82,53.91559401]
[1756742897688,6.84978415,198.84,198.82,53.91559401]
[1756742897893,7.55978415,198.83,198.82,53.91559401]
[1756742898104,7.55978415,198.83,198.8,40.32]
[1756742898296,6.84978415,198.81,198.75,0.12]
[1756742898606,6.84978415,198.79,198.75,0.12]
[1756742898808,6.84978415,198.79,198.75,54.03559401]
[1756742898988,7.55978415,198.79,198.75,54.03559401]
[1756742899191,0.71,198.78,198.75,54.03559401]
[1756742899991,6.84978415,198.79,198.75,54.03559401]
[1756742900300,6.84978415,198.77,198.75,0.12]
[1756742900503,6.84978415,198.76,198.75,0.12]
[1756742900798,7.55978415,198.76,198.75,0.12]
[1756742901897,0.14216157,198.78,198.75,0.12]
[1756742902213,6.84978415,198.77,198.75,0.12]
[1756742902512,133.8,198.81,198.75,0.12]
[1756742902513,12.59097754,198.76,198.75,0.12]
[1756742902908,7.55978415,198.76,198.75,0.12]
[1756742903694,12.73313911,198.76,198.75,0.12]
[1756742906304,38.73313911,198.76,198.75,0.12]
[1756742906508,33.55978415,198.76,198.75,0.12]
[1756742906822,32.84978415,198.77,198.75,0.12]
[1756742906998,6.84978415,198.76,198.75,0.12]
[1756742907199,6.84978415,198.77,198.75,0.12]
[1756742907412,6.84978415,198.76,198.75,0.12]
[1756742908923,7.55978415,198.76,198.75,0.12]
[1756742911707,12.59097754,198.76,198.75,0.12]
[1756742912600,7.55978415,198.76,198.75,0.12]
[1756742912807,6.84978415,198.76,198.75,0.12]
[1756742913427,133.8,198.77,198.75,0.12]
[1756742914496,140.64978415,198.77,198.75,0.12]
[1756742914925,7.56978415,198.76,198.75,0.12]
[1756742915616,0.72,198.76,198.75,0.12]